bitfinex/quotes_SOLUSD_20260309
["timestamp","ask_amount","ask_price","bid_price","bid_amount"]
[1773065127416,3.41964515,85.307,85.271,3.37786969]
[1773065127623,11.31487006,85.31,85.261,41.05042163]
[1773065127624,15.137617,85.339,85.301,3.37786969]
[1773065127810,103.2,85.373,85.301,3.37786969]
[1773065127811,3.41964515,85.338,85.31,11.31487006]
[1773065128116,46.8339511,85.409,85.31,11.31487006]
[1773065128117,11.7168036,85.348,85.32,11.31487006]
[1773065128624,3.41964515,85.347,85.314,11.72131624]
[1773065129023,32.70847285,85.357,85.32,11.31487006]
[1773065129205,11.31487006,85.36,85.32,11.31487006]
[1773065129206,3.41964515,85.355,85.321,3.37786969]
[1773065129526,3.41964515,85.349,85.31,11.31487006]
[1773065129697,3.41964515,85.339,85.31,11.31487006]
[1773065130109,3.41964515,85.339,85.302,11.72305455]
[1773065130110,3.41964515,85.349,85.32,11.31487006]
[1773065130526,3.41964515,85.349,85.31,11.31487006]
[1773065130820,11.71673618,85.348,85.311,11.72181781]
[1773065130995,3.41964515,85.347,85.32,11.31487006]
[1773065131195,3.41964515,85.347,85.311,11.72181781]
[1773065131917,3.41964515,85.347,85.32,11.31487006]
[1773065132100,3.41964515,85.347,85.311,11.72181781]
[1773065132907,11.71701075,85.346,85.321,3.37786969]
[1773065133108,3.1970531,85.345,85.31,11.31487006]
[1773065133317,3.1970531,85.339,85.302,3.12525053]
[1773065133620,3.1970531,85.339,85.31,11.31487006]
[1773065133811,3.1970531,85.339,85.27,57.4]
[1773065133812,3.1970531,85.329,85.3,11.31487006]
[1773065134722,11.31487006,85.34,85.311,3.12525053]
[1773065135015,11.71749053,85.343,85.31,11.31487006]
[1773065135224,14.91385688,85.348,85.32,11.31487006]
[1773065135618,3.1970531,85.347,85.311,3.12525053]
[1773065136816,3.1970531,85.347,85.31,11.31487006]
[1773065136817,11.31487006,85.34,85.31,11.31487006]
[1773065137015,11.31487006,85.35,85.321,3.12525053]
[1773065137324,11.31487006,85.35,85.293,0.28432314]
[1773065137325,3.1970531,85.349,85.293,3.12525053]
[1773065137522,11.31487006,85.34,85.301,3.12525053]
[1773065137912,3.1970531,85.339,85.301,3.12525053]
[1773065138116,3.1970531,85.339,85.31,11.31487006]
[1773065138626,52.32255174,85.35,85.294,41.03453935]
[1773065138627,11.71652761,85.35,85.321,3.12525053]
[1773065139405,3.1970531,85.339,85.301,11.72319199]
[1773065139723,3.1970531,85.339,85.302,3.12525053]
[1773065139906,3.1970531,85.339,85.31,11.31487006]
[1773065140113,3.1970531,85.339,85.302,3.12525053]
[1773065140308,3.1970531,85.329,85.293,11.72429155]
[1773065140614,3.1970531,85.329,85.3,11.31487006]
[1773065141421,3.1970531,85.319,85.284,11.72552882]
[1773065141722,3.1970531,85.319,85.263,0.28432314]
[1773065141723,3.1970531,85.309,85.261,3.12525053]
[1773065141924,11.31487006,85.29,85.262,11.72855433]
[1773065142227,11.31487006,85.29,85.261,3.12525053]
[1773065142431,3.1970531,85.289,85.261,11.72862586]
[1773065142721,3.1970531,85.289,85.26,0.2]
[1773065143226,3.1970531,85.289,85.261,14.85394242]
[1773065143427,11.7236043,85.298,85.264,3.12525053]
[1773065143628,3.1970531,85.297,85.264,3.12525053]
[1773065144626,11.7236043,85.298,85.26,11.51487006]
[1773065144627,3.1970531,85.299,85.265,11.72814167]
[1773065144829,11.31487006,85.29,85.265,11.72814167]
[1773065145133,11.31487006,85.29,85.26,0.2]
[1773065145134,3.1970531,85.289,85.26,0.2]
[1773065145931,3.1970531,85.289,85.26,11.92876447]
[1773065146133,3.1970531,85.299,85.261,3.12525053]
[1773065146623,3.1970531,85.319,85.281,3.12525053]
[1773065146818,11.72085609,85.318,85.29,11.31487006]
[1773065147017,11.72085609,85.318,85.281,3.12525053]
[1773065147316,44.22004941,85.318,85.281,3.12525053]
[1773065147635,3.1970531,85.317,85.29,11.31487006]
[1773065147824,11.71978742,85.326,85.3,11.31487006]
[1773065148031,11.71907044,85.331,85.301,3.12525053]
[1773065148357,11.31487006,85.32,85.28,14.44012059]
[1773065148522,3.1970531,85.287,85.25,0.2]
[1773065148830,134.83725728,85.288,85.19,0.2]
[1773065148831,3.1970531,85.256,85.19,0.2]
[1773065149018,11.31487006,85.21,85.171,3.12525053]
[1773065149211,11.31487006,85.19,85.159,3.12525053]
[1773065149414,3.69383402,85.221,85.16,11.31487006]
[1773065149415,3.1970531,85.198,85.16,11.31487006]
[1773065149613,11.31487006,85.19,85.155,3.12525053]
[1773065149836,3.1970531,85.169,85.124,3.12525053]
[1773065150014,3.1970531,85.169,85.131,3.12525053]
[1773065150418,14.6641039,85.15,85.111,3.12668448]
[1773065150616,14.6641039,85.15,85.094,29.37921579]
[1773065150617,11.74411913,85.149,85.112,3.12668448]
[1773065150830,11.31487006,85.13,85.089,3.12668448]
[1773065151115,11.31487006,85.12,85.083,3.12668448]
[1773065151338,0.28432314,85.132,85.083,3.12668448]
[1773065151339,11.31487006,85.11,85.083,3.12668448]
[1773065151517,3.63355698,85.119,85.07,14.44155454]
[1773065151830,11.31487006,85.11,85.071,3.12668448]
[1773065152031,11.31487006,85.11,85.081,3.12668448]
[1773065152214,11.31487006,85.09,85.06,11.31487006]
[1773065152542,11.31487006,85.09,85.051,29.39412822]
[1773065152543,15.09799156,85.116,85.07,11.31487006]
[1773065152830,15.09799156,85.116,85.061,3.12668448]
[1773065152831,11.31487006,85.11,85.081,3.12668448]
[1773065153033,41.11310802,85.131,85.062,3.12668448]
[1773065153034,11.31487006,85.1,85.062,3.12668448]
[1773065153227,11.31487006,85.09,85.051,3.12668448]
[1773065153430,11.31487006,85.09,85.052,11.75751305]
[1773065153633,0.28432314,85.112,85.05,0.1]
[1773065153634,11.31487006,85.07,85.05,0.1]
[1773065154030,11.31487006,85.06,85.05,0.1]
[1773065154226,3.34923384,85.059,85.03,0.1]
[1773065154440,11.31487006,85.08,84.989,29.41546447]
[1773065154441,11.31487006,85.04,85.004,3.12668448]
[1773065154734,3.69383402,85.077,84.989,29.41546447]
[1773065154735,11.75654545,85.059,85.021,3.12668448]
[1773065154935,11.31487006,85.05,85.021,3.12668448]
[1773065155140,11.31487006,85.04,85.01,0.1]
[1773065155338,41.14790909,85.059,84.96,0.1]
[1773065155339,0.14216157,85.018,84.96,0.1]
[1773065155521,72.55400366,85.018,84.973,3.12668448]
[1773065155842,11.31487006,85.01,84.981,3.12668448]
[1773065156038,11.31487006,85.0,84.97,11.41487006]
[1773065156270,11.31487006,85.0,84.973,11.76844409]
[1773065156442,72.55400366,85.018,84.99,11.31487006]
[1773065156622,72.55400366,85.018,84.972,7.10872832]
[1773065156623,11.31487006,85.0,84.972,7.10872832]
[1773065156823,11.31487006,84.98,84.924,11.77511265]
[1773065157043,11.31487006,84.96,84.923,3.12668448]
[1773065157235,11.31487006,84.97,84.941,3.12668448]
[1773065157443,79.34443163,85.001,84.923,11.77537298]
[1773065157444,11.31487006,84.96,84.924,3.12668448]
[1773065157645,11.31487006,84.97,84.93,14.44155454]
[1773065157841,2.22269621,84.98,84.941,3.12668448]
[1773065157842,11.31487006,84.98,84.941,3.12668448]
[1773065158042,11.31487006,84.97,84.941,3.12668448]
[1773065158339,75.65059761,84.991,84.951,3.12668448]
[1773065158340,11.31487006,84.99,84.951,3.12668448]
[1773065158535,75.65059761,84.991,84.971,11.76872109]
[1773065158728,75.65059761,84.991,84.961,2.62668448]
[1773065158931,11.31487006,84.98,84.944,3.69383402]
[1773065159228,11.31487006,84.98,84.94,11.31487006]
[1773065159436,11.76609012,84.99,84.93,11.31487006]
[1773065159437,11.31487006,84.97,84.93,11.31487006]
[1773065159629,11.31487006,84.97,84.87,47.13063769]
[1773065159630,11.31487006,84.94,84.877,47.12677559]
[1773065159828,11.31487006,84.94,84.9,11.31487006]
[1773065160029,11.31487006,84.95,84.91,11.41487006]
[1773065160233,11.31487006,84.95,84.91,0.1]
[1773065160539,11.77315485,84.939,84.91,0.1]
[1773065160746,11.77315485,84.939,84.898,3.12668448]
[1773065160747,0.28432314,84.938,84.898,3.12668448]
[1773065160924,0.28432314,84.938,84.84,47.14750992]
[1773065160925,11.31487006,84.91,84.853,3.12668448]
[1773065161125,11.31487006,84.91,84.824,47.15601484]
[1773065161126,2.74067638,84.879,84.828,3.12668448]
[1773065161327,11.31487006,84.9,84.841,3.12668448]
[1773065161328,11.31487006,84.87,84.841,3.12668448]
[1773065161555,11.31487006,84.89,84.851,3.12668448]
[1773065161760,11.31487006,84.88,84.841,3.12668448]
[1773065161926,0.28432314,84.89,84.841,3.12668448]
[1773065162130,41.06743682,84.909,84.841,3.12668448]
[1773065162131,11.31487006,84.9,84.841,3.12668448]
[1773065162338,41.06743682,84.909,84.829,288.81632456]
[1773065162339,41.06743682,84.909,84.871,3.12668448]
[1773065162547,11.31487006,84.89,84.871,3.12668448]
[1773065162728,0.28432314,84.908,84.873,3.12668448]
[1773065162729,11.31487006,84.9,84.873,3.12668448]
[1773065162928,29.43757022,84.926,84.872,11.78244886]
[1773065162929,2.76284848,84.959,84.891,3.12668448]
[1773065163129,11.76664391,84.986,84.882,3.31981254]
[1773065163130,2.77791534,84.939,84.882,3.31981254]
[1773065163329,2.77791534,84.927,84.882,3.31981254]
[1773065163530,11.31487006,84.89,84.855,3.31981254]
[1773065163746,11.31487006,84.87,84.831,3.31981254]
[1773065163950,11.31487006,84.85,84.831,3.31981254]
[1773065164150,11.31487006,84.84,84.812,3.31981254]
[1773065164341,2.79282643,84.863,84.802,3.31981254]
[1773065164544,11.31487006,84.88,84.841,3.31981254]
[1773065164751,2.80759324,84.89,84.843,3.31981254]
[1773065164752,11.31487006,84.87,84.843,3.31981254]
[1773065165246,33.64807359,84.879,84.842,11.78661511]
[1773065165247,21.86659643,84.879,84.86,11.31487006]
[1773065165449,4.82477569,84.92,84.842,11.78661511]
[1773065165450,11.31487006,84.91,84.871,3.31981254]
[1773065165763,2.82216807,84.879,84.835,11.78753345]
[1773065165929,16.13964575,84.9,84.812,3.31981254]
[1773065165930,11.31487006,84.85,84.812,3.31981254]
[1773065166248,12.02662914,84.868,84.812,3.31981254]
[1773065166433,12.02662914,84.868,84.821,3.31981254]
[1773065166434,11.31487006,84.85,84.821,3.31981254]
[1773065166632,12.02662914,84.868,84.832,3.31981254]
[1773065166833,0.28432314,84.867,84.832,3.31981254]
[1773065167055,12.02662914,84.868,84.832,3.31981254]
[1773065167253,9.62130332,84.889,84.851,3.31981254]
[1773065167433,11.31487006,84.88,84.851,3.31981254]
[1773065167631,9.62130332,84.889,84.851,3.31981254]
[1773065168350,2.85083361,84.916,84.861,3.31981254]
[1773065168657,2.47215037,101.99,84.874,3.31981254]
[1773065168658,11.31487006,84.91,84.874,3.31981254]
[1773065168839,11.31487006,84.9,84.863,11.78360141]
[1773065169336,11.31487006,84.9,84.87,11.31487006]
[1773065169536,7.21461253,84.914,84.89,11.31487006]
[1773065169749,2.8788,84.939,84.89,11.31487006]
[1773065169750,11.31487006,84.93,84.89,11.31487006]
[1773065169944,11.31487006,84.93,84.891,3.31981254]
[1773065170235,2.8788,84.927,84.89,11.31487006]
[1773065170435,11.31487006,84.93,84.89,11.31487006]
[1773065170650,11.77731453,84.909,84.871,11.78258769]
[1773065170833,11.77606632,84.918,84.88,11.31487006]
[1773065171039,11.31487006,84.91,84.872,3.31981254]
[1773065171285,11.31487006,84.93,84.891,3.31981254]
[1773065171447,11.31487006,84.93,84.871,41.23905691]
[1773065171448,11.31487006,84.92,84.88,11.31487006]
[1773065171751,11.77454108,84.929,84.871,11.78258769]
[1773065171752,14.21958698,84.91,84.871,11.78258769]
[1773065172137,14.21958698,84.91,84.855,3.69383402]
[1773065172138,11.31487006,84.89,84.853,11.78503246]
[1773065172455,11.31487006,84.86,84.82,11.78954692]
[1773065172754,11.78564273,84.849,84.811,11.79092334]
[1773065172938,2.91679802,84.884,84.821,3.31981254]
[1773065173253,11.31487006,84.85,84.812,3.31981254]
[1773065173452,11.31487006,84.86,84.821,3.31981254]
[1773065173758,3.69383402,84.891,84.795,50.8659918]
[1773065173759,2.92872629,84.847,84.795,3.31981254]
[1773065174056,2.92872629,84.847,84.764,47.18940207]
[1773065174057,2.92872629,84.867,84.811,3.31981254]
[1773065174244,11.43831777,84.86,84.82,11.43831777]
[1773065174441,11.43831777,84.86,84.801,147.40392209]
[1773065174442,11.43831777,84.87,84.831,3.31981254]
[1773065174659,11.43831777,84.85,84.819,3.31981254]
[1773065174846,2.94050849,84.858,84.82,23.22799001]
[1773065175042,2.94050849,84.858,84.82,41.26385285]
[1773065175250,11.43831777,84.85,84.811,3.31981254]
[1773065175442,4.82477569,84.88,84.808,11.79134043]
[1773065175443,11.43831777,84.86,84.82,11.43831777]
[1773065175656,2.95215795,84.895,84.85,11.43831777]
[1773065175854,11.43831777,84.91,84.871,3.31981254]
[1773065176039,14.72821868,84.919,84.871,3.31981254]
[1773065176238,2.95215795,84.909,84.858,3.31981254]
[1773065176542,11.43831777,84.9,84.86,14.75813031]
[1773065176861,11.77606073,84.919,84.88,11.43831777]
[1773065177037,14.73846733,84.927,84.881,3.31981254]
[1773065177241,14.73846733,84.927,84.88,11.43831777]
[1773065177242,11.43831777,84.92,84.88,11.43831777]
[1773065177442,11.77481837,84.927,84.88,3.31981254]
[1773065177660,0.28432314,84.926,84.89,11.43831777]
[1773065177857,2.96364896,84.932,84.88,3.31981254]
[1773065178169,11.43831777,84.94,84.901,3.31981254]
[1773065178360,0.28432314,84.949,84.91,14.75813031]
[1773065178539,11.43831777,84.94,84.91,3.31981254]
[1773065178745,2.98616811,84.975,84.93,11.43831777]
[1773065179045,47.04764534,85.021,84.95,11.43831777]
[1773065179046,11.76746102,84.981,84.95,11.43831777]
[1773065179245,11.76746102,84.981,84.93,11.43831777]
[1773065179246,11.43831777,84.97,84.93,11.43831777]
[1773065179459,11.43831777,84.95,84.915,3.31981254]
[1773065179643,135.32449141,84.981,84.931,3.31981254]
[1773065179644,11.43831777,84.97,84.931,3.31981254]
[1773065179843,11.43831777,84.97,84.93,11.43831777]
[1773065179844,11.76746102,84.981,84.95,11.43831777]
[1773065180054,11.43831777,84.98,84.942,3.31981254]
[1773065180361,2.9972462,84.949,84.89,11.43831777]
[1773065180543,4.82477569,84.969,84.921,3.31981254]
[1773065180749,11.76622857,84.989,84.95,11.77162119]
[1773065181060,3.0082498,84.979,84.904,3.31981254]
[1773065181246,3.0082498,84.979,84.94,11.43831777]
[1773065181455,0.14216157,84.988,84.95,11.43831777]
[1773065181654,0.14216157,84.988,84.872,47.1295378]
[1773065181655,3.0190605,84.987,84.94,11.43831777]
[1773065181847,0.14216157,84.969,84.931,3.31981254]
[1773065182168,11.43831777,84.95,84.911,3.31981254]
[1773065182360,0.28432314,84.959,84.901,41.22448498]
[1773065182361,3.69383402,84.986,84.921,3.31981254]
[1773065182663,3.69383402,84.986,84.901,41.22448498]
[1773065182664,3.02977723,84.949,84.91,11.43831777]
[1773065182967,11.77190751,84.948,84.91,11.43831777]
[1773065183167,11.43831777,84.93,84.892,3.31981254]
[1773065183346,11.43831777,84.92,84.88,11.43831777]
[1773065183553,3.04038837,84.928,84.881,3.31981254]
[1773065183869,0.28432314,84.929,84.881,3.31981254]
[1773065183870,11.43831777,84.92,84.881,3.31981254]
[1773065184067,3.04038837,84.935,84.891,3.31981254]
[1773065184364,11.43831777,84.93,84.891,3.31981254]
[1773065184545,0.28432314,84.934,84.9,14.75813031]
[1773065184744,3.05086392,84.962,84.921,3.31981254]
[1773065184946,11.43831777,84.94,84.9,11.43831777]
[1773065185165,11.43831777,84.94,84.9,26.536627]
[1773065185462,11.43831777,84.94,84.889,29.45012624]
[1773065185463,0.28432314,84.941,84.895,11.77916558]
[1773065185672,0.28432314,84.949,84.91,11.43831777]
[1773065185850,11.77010628,84.961,84.93,11.43831777]
[1773065186057,11.43831777,84.94,84.907,3.31981254]
[1773065186366,11.77010628,84.961,84.889,11.77998546]
[1773065186367,11.43831777,84.92,84.889,11.77998546]
[1773065186562,3.06118494,84.929,84.89,11.43831777]
[1773065186563,0.28432314,84.929,84.89,11.43831777]
[1773065186750,0.28432314,84.929,84.889,11.77998546]
[1773065186751,0.28432314,84.927,84.884,3.31981254]
[1773065187068,41.21137904,84.928,84.884,3.31981254]
[1773065187069,11.43831777,84.92,84.884,3.31981254]
[1773065187566,0.28432314,84.919,84.884,3.31981254]
[1773065187775,0.28432314,84.927,84.89,11.43831777]
[1773065187964,11.77467972,84.928,84.884,11.78070641]
[1773065187965,11.77467972,84.928,84.9,11.43831777]
[1773065188154,0.28432314,84.933,84.901,3.31981254]
[1773065188670,11.43831777,84.94,84.91,11.43831777]
[1773065188868,11.77315485,84.939,84.91,11.43831777]
[1773065189088,3.09153778,84.978,84.921,3.31981254]
[1773065189381,0.28432314,84.949,84.908,3.31981254]
[1773065189669,29.41660979,84.986,84.9,11.43831777]
[1773065189670,3.10143529,84.982,84.931,3.31981254]
[1773065189871,11.43831777,84.97,84.931,3.31981254]
[1773065190377,3.10143529,84.986,84.95,11.43831777]
[1773065190759,11.43831777,84.98,84.941,3.31981254]
[1773065190959,0.28432314,84.978,84.941,15.09260974]
[1773065191170,11.76761317,84.979,84.942,11.77273904]
[1773065191171,41.1866461,84.979,84.942,11.77273904]
[1773065191367,3.11120385,84.969,84.93,11.43831777]
[1773065191570,3.11120385,84.969,84.891,47.11924703]
[1773065191571,3.12089684,84.949,84.91,11.43831777]
[1773065191887,0.28432314,84.969,84.931,3.31981254]
[1773065192055,3.40521998,84.976,84.94,11.43831777]
[1773065192383,11.43831777,84.97,84.931,3.31981254]
[1773065192673,0.28432314,84.976,84.941,3.31981254]
[1773065192882,3.13042684,85.039,84.972,41.19003906]
[1773065193183,3.13042684,85.033,84.985,3.31981254]
[1773065193365,3.42415139,85.029,84.99,11.43831777]
[1773065193561,3.42415139,85.029,84.973,3.43663179]
[1773065193814,41.1580705,85.038,84.973,3.43663179]
[1773065193815,3.1491224,85.019,84.98,11.43831777]
[1773065193956,3.1491224,85.029,84.99,11.43831777]
[1773065194156,0.28432314,85.028,84.99,11.43831777]
[1773065194468,0.28432314,85.028,84.98,11.43831777]
[1773065194469,11.43831777,85.02,84.98,11.43831777]
[1773065194774,11.75944871,85.038,85.0,11.43831777]
[1773065195180,105.7994055,85.067,84.985,29.41673463]
[1773065195181,11.75668367,85.058,85.011,3.43663179]
[1773065195378,11.75668367,85.058,85.021,3.43663179]
[1773065195555,11.75654545,85.059,85.021,3.43663179]
[1773065195757,11.75654545,85.059,85.01,11.43831777]
[1773065195758,11.43831777,85.05,85.01,11.43831777]
[1773065196169,11.43831777,85.03,84.992,3.43663179]
[1773065196376,0.28432314,85.029,84.993,11.76567482]
[1773065196759,0.28432314,85.029,84.992,3.43663179]
[1773065196983,11.75944871,85.038,84.992,15.20231919]
[1773065197279,0.28432314,85.037,85.0,14.87494956]
[1773065197479,11.43831777,85.03,84.992,11.7656874]
[1773065197681,14.62353046,85.03,84.991,11.76595168]
[1773065197980,0.28432314,85.037,84.96,11.72264091]
[1773065197981,0.28432314,85.037,85.001,3.43663179]
[1773065198477,23.19619285,85.05,85.011,3.43663179]
[1773065198681,11.43831777,85.04,85.011,3.43663179]
[1773065198870,11.43831777,85.03,84.991,3.43663179]
[1773065199077,0.28432314,85.039,84.971,3.69383402]
[1773065199078,0.28432314,85.039,85.0,11.43831777]
[1773065199253,11.43831777,85.03,84.993,3.43663179]
[1773065199582,11.75944871,85.038,84.993,3.43663179]
[1773065199583,0.28432314,85.034,84.993,3.43663179]
[1773065199780,3.20265936,85.029,84.99,11.43831777]
[1773065199959,11.43831777,85.02,84.981,3.43663179]
[1773065200960,11.43831777,85.01,84.968,3.43663179]
[1773065201166,11.43831777,85.04,85.0,14.87494956]
[1773065201380,0.14216157,85.045,84.969,147.1124763]
[1773065201381,11.43831777,85.03,84.97,3.43663179]
[1773065201552,11.43831777,85.03,84.969,41.19149336]
[1773065201553,0.28432314,85.033,85.0,11.43831777]
[1773065201758,14.97800362,85.046,85.01,11.43831777]
[1773065202051,14.97800362,85.046,85.001,3.43663179]
[1773065202052,3.21966108,85.083,85.04,11.43831777]
[1773065202284,11.95649973,85.06,85.031,3.43663179]
[1773065202656,0.2,85.06,85.04,11.43831777]
[1773065203177,1e-08,85.06,85.05,11.43831777]
[1773065203353,11.43831777,85.1,85.051,3.43663179]
[1773065203553,11.43831777,85.11,85.071,3.43663179]
[1773065203784,46.98140234,85.141,85.041,150.68175747]
[1773065203785,11.74727715,85.127,85.09,11.43831777]
[1773065203961,3.23630703,85.126,85.09,11.43831777]
[1773065204160,11.74727715,85.127,85.1,11.43831777]
[1773065204366,3.23630703,85.129,85.09,11.43831777]
[1773065204561,11.43831777,85.13,85.091,3.43663179]
[1773065204777,11.43831777,85.11,85.07,11.43831777]
[1773065204964,11.43831777,85.09,85.051,15.19428308]
[1773065205273,11.43831777,85.09,85.052,3.43663179]
[1773065205584,11.43831777,85.08,85.052,3.43663179]
[1773065205766,3.53684653,85.089,85.051,11.75765129]
[1773065205959,0.28432314,85.089,85.052,3.51889422]
[1773065206272,0.28432314,85.097,85.061,3.51889422]
[1773065206579,11.75115748,85.098,85.061,3.51889422]
[1773065206771,11.43831777,85.09,85.051,11.75765129]
[1773065207077,0.28432314,85.097,85.06,11.43831777]
[1773065207279,11.7510194,85.099,85.061,3.51889422]
[1773065207481,11.43831777,85.09,85.05,11.43831777]
[1773065207787,0.28432314,85.088,85.051,3.51889422]
[1773065207982,0.28432314,85.088,85.05,11.43831777]
[1773065208182,3.27610121,85.059,85.011,3.51889422]
[1773065208479,11.43831777,85.05,85.011,3.51889422]
[1773065208900,11.43831777,85.03,84.922,11.43831777]
[1773065209183,11.43831777,85.08,68.278,17.87192166]
[1773065209184,11.43831777,84.97,84.931,3.51889422]
[1773065209361,0.28432314,84.969,84.931,3.51889422]
[1773065209682,0.28432314,84.969,84.907,94.22000714]
[1773065209683,21.0840668,84.96,84.907,3.51889422]
[1773065209874,0.28432314,84.959,84.911,3.51889422]
[1773065210182,17.79263514,84.96,84.921,3.51889422]
[1773065210392,17.79263514,84.95,84.921,3.51889422]
[1773065211077,17.79263514,84.96,84.921,3.51889422]
[1773065211281,17.79263514,84.95,84.921,3.51889422]
[1773065211467,11.77038336,84.959,84.923,3.51889422]
[1773065211672,29.42227189,84.97,84.931,3.51889422]
[1773065211673,11.76964446,84.965,84.931,3.51889422]
[1773065211983,17.79263514,84.96,84.931,3.51889422]
[1773065212484,11.76964446,84.965,84.931,3.51889422]
[1773065212685,17.79263514,84.96,84.931,3.51889422]
[1773065213290,11.77038336,84.959,84.931,3.51889422]
[1773065213801,11.77038336,84.959,84.927,11.77478745]
[1773065213802,0.14216157,84.988,84.933,3.51889422]
[1773065214000,0.14216157,84.988,84.91,0.28432314]
[1773065214001,17.79263514,84.94,84.906,3.51889422]
[1773065214284,17.79263514,84.94,84.897,11.77891756]
[1773065214285,17.79263514,84.93,84.89,17.79263514]
[1773065214486,3.32820323,84.959,84.901,3.51889422]
[1773065214786,30.35578532,85.087,84.911,3.51889422]
[1773065214787,17.79263514,84.95,84.911,3.51889422]
[1773065214990,41.18034638,84.992,84.911,3.51889422]
[1773065215189,41.18034638,84.992,84.89,0.14216157]
[1773065215190,3.32820323,84.989,84.896,3.51889422]
[1773065215395,17.79263514,84.95,84.918,3.51889422]
[1773065215894,3.32820323,84.969,84.895,41.22739854]
[1773065215895,3.32820323,84.969,84.921,3.51889422]
[1773065216089,17.79263514,84.96,84.921,3.51889422]
[1773065216590,17.79263514,84.96,84.895,41.22739854]
[1773065216591,17.79263514,84.97,84.931,3.51889422]
[1773065216789,17.79263514,84.96,84.931,3.51889422]
[1773065216965,17.79263514,84.96,84.915,3.51889422]
[1773065217296,11.77038336,84.959,84.93,17.79263514]
[1773065217590,11.77038336,84.959,84.931,3.51889422]
[1773065217795,11.77038336,84.959,84.93,17.79263514]
[1773065217796,17.79263514,84.98,84.941,3.51889422]
[1773065218290,17.79263514,84.99,84.933,3.51889422]
[1773065218493,17.79263514,84.99,84.939,3.51889422]
[1773065219191,17.79263514,84.99,84.924,3.69383402]
[1773065219192,17.79263514,84.98,84.941,3.51889422]
[1773065219392,17.79263514,84.98,84.94,17.79263514]
[1773065219393,11.76761317,84.979,84.943,3.51889422]
[1773065219688,17.79263514,85.0,84.961,3.51889422]
[1773065220284,29.40646287,85.016,84.971,3.51889422]
[1773065220486,47.03373862,85.046,84.968,3.51889422]
[1773065220487,17.79263514,85.0,84.968,3.51889422]
[1773065220673,17.79263514,85.0,84.955,3.51889422]
[1773065220992,0.14216157,85.01,84.951,3.51889422]
[1773065221296,0.14216157,85.01,84.972,3.51889422]
[1773065221297,11.76346033,85.009,84.972,3.51889422]
[1773065221499,11.76124669,85.025,84.991,3.51889422]
[1773065221675,11.76124669,85.025,84.96,0.28432314]
[1773065221676,17.79263514,85.01,84.97,17.79263514]
[1773065222082,17.79263514,85.01,84.97,21.31152936]
[1773065222288,0.14216157,85.018,84.98,17.79263514]
[1773065222491,3.57372177,85.009,84.97,17.79263514]
[1773065223282,41.17695502,84.999,84.963,3.46130161]
[1773065223490,17.79263514,84.98,84.94,17.79263514]
[1773065223684,17.79263514,84.98,84.941,3.46130161]
[1773065223896,41.17695502,84.999,84.902,100.11542719]
[1773065223897,17.79263514,84.99,84.951,3.46130161]
[1773065224505,17.79263514,84.97,84.928,3.46130161]
[1773065224794,17.79263514,84.96,84.92,17.79263514]
[1773065224974,17.79263514,84.96,84.916,3.46130161]
[1773065224975,17.79263514,84.98,84.941,3.46130161]
[1773065225175,17.79263514,84.97,84.941,3.46130161]
[1773065225374,0.28432314,84.989,84.902,41.22399943]
[1773065225375,17.79263514,84.95,84.906,3.46130161]
[1773065225601,17.79263514,84.95,84.911,3.46130161]
[1773065226481,147.1124763,84.969,84.899,3.46130161]
[1773065226482,17.79263514,84.93,84.899,3.46130161]
[1773065226680,17.79263514,84.93,84.89,17.79263514]
[1773065226681,3.60588886,84.939,84.901,3.46130161]
[1773065227300,11.77454108,84.929,84.892,11.77967299]
[1773065227494,11.77454108,84.929,84.892,15.2409746]
[1773065227697,11.77093755,84.955,84.921,3.46130161]
[1773065227912,41.19828143,84.955,84.921,3.46130161]
[1773065228291,3.60588886,84.968,84.93,17.79263514]
[1773065228292,11.76927513,84.967,84.93,17.79263514]
[1773065228517,41.19149336,84.969,84.931,3.46130161]
[1773065228810,3.60588886,84.967,84.931,3.46130161]
[1773065229103,17.79263514,84.95,84.911,3.46130161]
[1773065229301,3.60588886,84.959,84.921,3.46130161]
[1773065229499,11.77038336,84.959,84.923,3.46130161]
[1773065229704,11.77038336,84.959,84.931,3.46130161]
[1773065230205,11.7689981,84.969,84.931,3.46130161]
[1773065230408,11.7689981,84.969,84.93,17.79263514]
[1773065230409,17.79263514,84.96,84.92,17.79263514]
[1773065230610,3.60588886,84.959,84.919,3.46130161]
[1773065230813,3.60588886,84.959,84.92,17.79263514]
[1773065231009,3.60588886,84.959,84.92,29.56842411]
[1773065231185,3.60588886,84.959,84.92,17.79263514]
[1773065231506,41.4758165,84.969,84.9,29.44635524]
[1773065231507,41.18671131,84.979,84.942,15.23404065]
[1773065231717,11.40384356,84.96,84.927,3.46130161]
[1773065231918,11.40384356,84.96,84.92,11.40384356]
[1773065232090,88.54148715,84.979,84.931,3.46130161]
[1773065232091,11.40384356,84.97,84.931,3.46130161]
[1773065232297,11.40384356,84.97,84.892,47.11833193]
[1773065232298,3.60588886,84.959,84.92,11.40384356]
[1773065232509,3.60588886,84.959,84.921,3.46130161]
[1773065232816,0.14216157,84.968,84.93,11.40384356]
[1773065233014,3.60588886,84.969,84.93,11.40384356]
[1773065233394,11.40384356,84.94,84.909,3.46130161]